Cogmind - Beta 13 X2 @@@ ROGUE MODE // 2023.12.31 @ 00:14:49 Player: Schmee Result: Destroyed by WW-BW2(R) with Subdweller Machine Gun Performance ------------- Evolutions (0) 0 Regions Visited (2) 400 Robots Destroyed (25) 125 Value Destroyed (861) 861 Prototype IDs (0) 0 Alien Tech Used (0) 0 Bonus (0) 0 TOTAL SCORE: 1386 Bonus ------- None Cogmind --------- Core Integrity 0/250 Matter 284/300 Energy 199/200 System Corruption 0% Temperature Cool (0) Movement Rolling (110) Location -10/Subcaves Parts ------- > --- POWER (1) -------- Subdweller Power Source > --- PROPULSION (2) --- Subdweller Monowheel Subdweller Monowheel > --- UTILITY (2) ------ Small Storage Unit Improved Targeting Computer > --- WEAPON (2) ------- Heavy Assault Rifle > --- INVENTORY (8) ---- Subdweller Power Source Aluminum Leg Improved Heat Sink Signal Interpreter Seismic Detector Improved Targeting Computer Heavy Assault Rifle Peak State ------------ > --- POWER ------------ Subdweller Power Source > --- PROPULSION ------- Subdweller Monowheel Subdweller Monowheel > --- UTILITY ---------- Small Storage Unit Improved Targeting Computer > --- WEAPON ----------- Subdweller Beam Cannon Heavy Assault Rifle > --- INVENTORY -------- Subdweller Power Source Aluminum Leg Improved Heat Sink Signal Interpreter Seismic Detector Improved Targeting Computer Heavy Assault Rifle Heavy Assault Rifle [Rating: 14] Favorites ----------- Power Ion Engine Engine Ion Engine Propulsion Light Treads Treads Light Treads Leg Aluminum Leg Wheel Subdweller Monowheel Utility Small Storage Unit Storage Small Storage Unit Processor Improved Targeting Computer Protection Weapon Shielding Weapon Heavy Assault Rifle Energy Gun EM Pulse Gun Energy Cannon Subdweller Beam Cannon Ballistic Gun Heavy Assault Rifle Launcher Grenade Launcher Build | -11 -10 -10 ------- Run | Yrd Mat Sub Slots Evolved . | . . . Power . | . . . Propulsion . | . . . Utility . | . . . Weapon . | . . . Parts Attached 28 | . 16 12 Power 4 | . 2 2 Engine 4 | . 2 2 Core . | . . . Reactor . | . . . Propulsion 6 | . 4 2 Treads 2 | . 2 . Leg 2 | . 2 . Wheel 2 | . . 2 Hover . | . . . Flight . | . . . Utility 5 | . 5 . Device . | . . . Storage 1 | . 1 . Processor 1 | . 1 . Hackware . | . . . Protection 3 | . 3 . Artifact . | . . . Weapon 13 | . 5 8 Energy Gun 2 | . 2 . Energy Cannon 1 | . . 1 Ballistic Gun 7 | . 3 4 Ballistic Cannon . | . . . Launcher 3 | . . 3 Special Weapon . | . . . Impact Weapon . | . . . Slashing Weapon . | . . . Piercing Weapon . | . . . Special Melee Weapon . | . . . Unidentified Prototypes . | . . . Parts Lost 8 | . 2 6 Power 2 | . 1 1 Propulsion 2 | . . 2 Utility 1 | . 1 . Weapon 3 | . . 3 Highest Loss Streak 4 | . 1 4 To Critical Strikes . | . . . Average Slot Usage (%) 97 | . 96 98 Engine 13 | . 13 13 Treads 21 | . 16 24 Leg 3 | . 11 . Wheel 1 | . . 2 Storage 14 | . 14 14 Processor 10 | . 5 14 Protection 1 | . 5 . Energy Gun 4 | . 13 . Energy Cannon 5 | . . 8 Ballistic Gun 15 | . 14 16 Launcher 1 | . . 2 Naked Turns . | . . . Heaviest Build 21 | 13 17 21 Greatest Support 40 | 20 40 40 Greatest Overweight (x) 6 | . . 6 Average Overweight (x) . | . . . Largest Inventory Capacity 8 | 8 8 8 Average Capacity 8 | 8 8 8 Most Carried 8 | 6 8 8 Average Carried 7 | 6 7 7 Final Capacity 8 | 8 8 8 Final Carried 8 | 6 8 7 Class Distribution -------------------- 95% | Mutant 4% | Scavenger-Mutant Dominant Class ---------------- Mutant | -10/Materials Mutant | -10/Subcaves Resources | -11 -10 -10 ----------- Run | Yrd Mat Sub Matter Collected 759 | 205 193 361 Remotely . | . . . Salvage Created 983 | 107 559 317 Parts 60 | 3 35 22 Haulers Intercepted . | . . . Recyclers Shooed . | . . . Parts Field Recycled . | . . . Retrieved Matter . | . . . Parts Self-Destructed 10 | . . 10 Prevented . | . . . Kills | -11 -10 -10 ------- Run | Yrd Mat Sub Combat Hostiles Destroyed 22 | . 12 10 Guns 10 | . 7 3 Cannons 3 | . . 3 AOE 7 | . 3 4 Classes Destroyed 8 | 2 2 4 Tunneler 1 | 1 . . Recycler 1 | 1 . . Watcher 1 | . 1 . Swarmer 1 | . . 1 Grunt 12 | . 12 . Sentry 1 | . . 1 Artisan 1 | . . 1 Subdweller 8 | . . 8 Best Kill Streak 3 | 2 3 2 Combat Bots Only 3 | . 3 2 Max Kills in Single Turn 2 | 1 2 2 Gunslinging . | . . . Exploded 2 | . 2 2 Melee . | . . . Uniques/NPCs Destroyed . | . . . Combat | -11 -10 -10 -------- Run | Yrd Mat Sub Hostile Shots Fired 100 | . 45 55 Missed 23 | . 7 16 Damage Taken 1395 | 10 541 844 Core 261 | . 99 162 Absorbed by Shields . | . . . Redirected to Shielding 5 | . 5 . Core Remaining (%) 100 | 100 . . Volleys Fired 98 | 5 50 43 Largest 2 | 2 2 2 Hottest 103 | 60 80 103 Shots Fired 158 | 10 84 64 Gun 124 | 10 84 30 Cannon 15 | . . 15 Launcher 19 | . . 19 Special . | . . . Kinetic 69 | 5 34 30 Thermal 25 | . 10 15 Explosive 19 | . . 19 Electromagnetic 45 | 5 40 . Robot Hit Streak 11 | 4 9 11 Robot Miss Streak 8 | 3 8 3 Penetration Max . | . . . Secondary Targets 1 | . 1 . Max Gunslinging Chain 1 | . 1 . Shots Hit Robots 96 | 5 55 36 Core Hits 46 | 2 22 22 Critical Kills . | . . . Critical Parts Destroyed . | . . . Critical Strikes . | . . . Melee Attacks . | . . . Impact . | . . . Slashing . | . . . Piercing . | . . . Sneak Attacks . | . . . Combat Hostiles . | . . . Follow-up Attacks . | . . . Damage Inflicted 2110 | 81 861 1168 Guns 875 | 45 621 209 Cannons 310 | . . 310 Explosions 925 | 36 240 649 Melee . | . . . Ramming . | . . . Kinetic 433 | 17 207 209 Thermal 671 | 36 325 310 Explosive 649 | . . 649 Electromagnetic 357 | 28 329 . Impact . | . . . Slashing . | . . . Piercing . | . . . Highest Corruption . | . . . Average Corruption . | . . . Corruption Purged . | . . . Corruption Blocked . | . . . Overload Shots . | . . . Overflow Damage . | . . . Projectiles . | . . . Explosions . | . . . Melee . | . . . Knockbacks . | . . . Impact . | . . . Kinetic . | . . . Secondary . | . . . Self-Inflicted Damage 156 | 11 70 75 Shots 8 | 1 2 5 Rammed . | . . . Targets Rammed . | . . . Kicked . | . . . Crushed . | . . . Highest Temperature 264 | 32 264 3 Average Temperature 66 | 16 71 3 Received Heat Transfer 384 | . 282 102 Effects 1 | . 1 . Energy Bleed 1 | . 1 . Siege Activations . | . . . Robots Corrupted 2 | . 2 . Combat Hostiles 2 | . 2 . Parts Fried 1 | . 1 . Impact Corruptions . | . . . Robots Melted . | . . . Combat Hostiles . | . . . Parts Melted 2 | . . 2 Heat Transferred 857 | . 450 407 Parts Sabotaged . | . . . Parts Stolen . | . . . Parts Stripped . | . . . Power Chain Reactions 4 | 1 3 . Missiles Intercepted . | . . . Alert | -11 -10 -10 ------- Run | Yrd Mat Sub Peak Influence 165 | 10 165 . Initial 6 | . 6 . Average 49 | 4 52 . Maximum Alert Level . | . . . Low Security (%) 100 | 100 100 . Level 1 . | . . . Level 2 . | . . . Level 3 . | . . . Level 4 . | . . . Level 5 . | . . . High Security . | . . . Max Security . | . . . Squads Dispatched 4 | . 4 . Investigation 3 | . 3 . Extermination . | . . . Reinforcement 1 | . 1 . Assault . | . . . Garrison . | . . . Intercept . | . . . Searches Triggered . | . . . Construction Impeded . | . . . Haulers Reinforced . | . . . Active Scanning Responses . | . . . Cargo Convoy Interrupts . | . . . Stealth | -11 -10 -10 --------- Run | Yrd Mat Sub Distress Signals 2 | . 2 . Communications Jammed . | . . . Distress Signals . | . . . Times Spotted 31 | . 18 13 Peak Tracking Total 3 | . 3 3 Tactical Retreats 3 | . 2 1 Traps | -11 -10 -10 ------- Run | Yrd Mat Sub Traps Triggered 2 | . 2 . Indirectly . | . . . Trap Hack Attempts . | . . . Triggered . | . . . Disarmed . | . . . Reprogrammed . | . . . Reused . | . . . Traps Extracted . | . . . Installed . | . . . Triggered . | . . . Machines | -11 -10 -10 ---------- Run | Yrd Mat Sub Machines Disabled 1 | . 1 . Max in Single Turn 1 | . 1 . Machines Repaired . | . . . Machines Dismantled . | . . . Machines Sabotaged . | . . . Overloaded Fab Kills . | . . . Hacking | -11 -10 -10 --------- Run | Yrd Mat Sub Machines Accessed 3 | . 3 . Terminals 3 | . 3 . Fabricators . | . . . Repair Stations . | . . . Recycling Units . | . . . Scanalyzers . | . . . Garrison Access . | . . . Total Hacks 6 | . 6 . Successful 3 | . 3 . Failed 3 | . 3 . Catastrophic 2 | . 2 . Database Lockouts . | . . . Manual 2 | . 2 . Terminals 6 | . 6 . Fabricators . | . . . Repair Stations . | . . . Recycling Units . | . . . Scanalyzers . | . . . Garrison Access . | . . . Terminal Hacks 2 | . 2 . Unreport Threat 2 | . 2 . Fabricator Hacks . | . . . Repair Station Hacks . | . . . Recycling Unit Hacks . | . . . Scanalyzer . | . . . Garrison Access Hacks . | . . . Unauthorized Hacks 1 | . 1 . Terminals 1 | . 1 . Botnet 1 | . 1 . Fabricators . | . . . Repair Stations . | . . . Recycling Units . | . . . Scanalyzers . | . . . Garrison Access . | . . . Data Cores Recovered . | . . . Used . | . . . Hacking Detections 2 | . 2 . Full Trace Events 1 | . 1 . Feedback Events . | . . . Feedback Blocked . | . . . Robot Schematics Acquired . | . . . Robots Built . | . . . Authchips . | . . . Time . | . . . Total Robot Build Rating . | . . . Part Schematics Acquired . | . . . Parts Built . | . . . Authchips . | . . . Time . | . . . Total Part Build Rating . | . . . Parts Repaired . | . . . Time . | . . . Parts Recycled . | . . . Recycled Matter . | . . . Retrieved Matter . | . . . Retrieved Components . | . . . Parts Scanalyzed . | . . . Part Schematics Acquired . | . . . Parts Damaged . | . . . Bothacking | -11 -10 -10 ------------ Run | Yrd Mat Sub Used RIF Installer . | . . . Robots Hacked . | . . . Non-combat . | . . . Combat . | . . . Robot Hacks Applied . | . . . Relay Couplers Released . | . . . Fabnet Peak Effective % . | . . . Robots Rewired . | . . . Allies Hacked . | . . . Hacks Repelled . | . . . Allies | -11 -10 -10 -------- Run | Yrd Mat Sub Total Allies . | . . . Largest Group . | . . . Highest-Rated Group . | . . . Highest-Rated Ally . | . . . Total Orders . | . . . Ally Attacks . | . . . Total Damage . | . . . Kills . | . . . Allies Corrupted . | . . . Allies Melted . | . . . Intel | -11 -10 -10 ------- Run | Yrd Mat Sub Robot Analysis Total . | . . . Derelict Logs Recovered 1 | . . 1 Drone Launches . | . . . Drone Recoveries . | . . . Exploration | -11 -10 -10 ------------- Run | Yrd Mat Sub Turns Passed 3561 | 76 1206 2279 Spaces Moved 2096 | 52 668 1376 Core 6 | . . 6 Treads 1585 | . 395 1190 Legs 325 | 52 273 . Wheels 180 | . . 180 Hover . | . . . Flight . | . . . Fastest Speed 110 | 120 120 110 Average Speed 150 | 120 143 154 Slowest Speed 350 | 120 160 350 Overloaded Moves . | . . . Propulsion Burnouts . | . . . Robots Hopped . | . . . Cave-ins Triggered . | . . . Exploration Rate (%) 52 | 4 95 58 Regions Visited 2 Branch Regions 1 Pre-discovered Areas 1 | . . 1 Known Exits Taken . | . . . Unknown Exits Taken 2 | 1 1 . Scrap Searched . | . . . Spaces Dug 9 | . . 9 Terrain Destroyed 96 | 4 9 83 Melee . | . . . Projectile 1 | . . 1 AOE 95 | 4 9 82 Terrain Rammed . | . . . Walls Destroyed . | . . . Machines Disabled . | . . . Actions | -11 -10 -10 --------- Run | Yrd Mat Sub Total 2354 | 56 840 1458 Wait 99 | . 78 21 Move 2094 | 51 667 1376 Hop . | . . . Pick Up 15 | . 12 3 Fast Attach 8 | . 5 3 Attach 6 | . 4 2 Detach 1 | . 1 . Swap 14 | . 7 7 Drop 19 | . 16 3 Fire 98 | 5 50 43 Melee . | . . . Ram . | . . . Kick . | . . . Crush . | . . . Escape Stasis . | . . . Rewire . | . . . Trap . | . . . Miscellaneous . | . . . Route ------- -11/Scrapyard -10/Materials (discovered 5 exits: [*Mat x3] / [*Min] / [*Sub]) -10/Subcaves History --------- Turn | Location | Event 1 | -11/Scrapyard | Discovered new exit (range 3) 77 | -11/Scrapyard | Entered Materials 94 | -10/Materials | Discovered new exit (range 15) 261 | -10/Materials | Discovered new exit (range 3) 311 | -10/Materials | Build established: Mutant 577 | -10/Materials | Discovered new exit (range 11) 736 | -10/Materials | Discovered new exit (range 9) 1244 | -10/Materials | Discovered new exit (range 12) 1283 | -10/Materials | Entered Subcaves 1293 | -10/Subcaves | Shifting Twisted Machinery released Mak. Laser 1408 | -10/Subcaves | Shifting Twisted Machinery released Battle Rifle 1428 | -10/Subcaves | A swath of the cavern ceiling suddenly collapsed 1888 | -10/Subcaves | Shifting Twisted Machinery released Sub. Power Source 2033 | -10/Subcaves | Ambushed by Subdweller buried in earth 2046 | -10/Subcaves | Shifting Twisted Machinery released Sub. Machine Gun 2339 | -10/Subcaves | Shifting Twisted Machinery released Battle Rifle 2343 | -10/Subcaves | Shifting Twisted Machinery released Sub. Monowheel 2384 | -10/Subcaves | Learned location of Zion (-7) 2384 | -10/Subcaves | Met a Zionite searching for "candidates" 2508 | -10/Subcaves | Core integrity fell below 50% 3257 | -10/Subcaves | Disturbed a concealed Subdweller 3304 | -10/Subcaves | Lost 4 parts (1p2n1w) 3357 | -10/Subcaves | Ambushed by Subdwellers from Twisted Machinery 3417 | -10/Subcaves | Learned 2 Materials zone layouts 3557 | -10/Subcaves | Core integrity fell below 20% 3562 | -10/Subcaves | Destroyed by WW-BW2(R) with Subdweller Machine Gun Last Messages --------------- 03315_ Acquired 18 matter. 03317_ Acquired Sub. Power Source. 03357_ X0-XP8(R) emerges from the Twisted Machinery. 03366_ X0-XP8(R) destroyed. 03372_ 1D-72Z(R) affixes Scrap Shield Fragment to Scrap Shield. 03375_ Sub. Optics melted. 03375_ Sub. Laser melted. 03375_ 1D-72Z(R) destroyed. 03381_ Dropped Sub. Power Source. 03382_ Acquired 53 matter. 03383_ Acquired 3 matter. 03386_ Acquired Sub. Monowheel. 03387_ Acquired 10 matter. 03417_ Acquired derelict log, extracted data. Data stored: Materials zone layouts (x2). 03507_ Sub. Monowheel shoots sparks and powers down. 03537_ Sub. Beam Cannon destroyed. 03542_ WJ-SG7(R) destroyed. 03547_ Acquired 20 matter. 03560_ Hvy. Assault Rifle destroyed. Map ----- +----------------------------------------------------+ | ?????????????????????????????????????????? | | ?????????????????????????????????????????? | | ?????????????????????????????????????????? | | ?????????????????????????????????????????? | | ?????????????????????????????????????????? | | ?????????????????????????????????????????? | | ?????????????????????????????????????????? | | ?????????????????????????????????????????? | | ?????????????????????????????????????????? | | ?????????????????????????????????????????? | | ?????????????????????????????????????????? | | ?????????????????????????????????????????? | | ?????????????????? ?????????????????????? | | ?????????????????"" ?????????????????????? | | ???????????????##" ?????????????????????? | | ???????????????#" ?????????????????????? | | ???????????????# ???????????????????? | | ???????????????# " #???????????????????? | | ???????????????# " #???????????????????? | | ???????????????# " #???????????????????? | | ???????????????# " #???????????????????? | | ??????????????## " ##??????????????????? | | ??????????????# R ""???????????????????? | | ??????????????##"" "?????????????????????? | | ??????????????#""%#??????????????????????? | | ??????????????##"@#??????????????????????? | | ??????????????## ##?????????????????????? | | ??????????????# #?????????????????????? | | ??????????????#""" ##????????????????????? | | ??????????????# "" ##???????????????????? | | ??????????????## ##??????????????????? | | ??????????????## #??????????????????? | | ??????????????# #??????????????????? | | ??????????????## ###??????????????????? | | ???????????????# ##???????????????????? | | ???????????????# ###?????????????????? | | ???????????????# *##????????????????? | | ???????????????# &%!##???????????????? | | ???????????????# ## ! #???????????????? | | ??????????????# ###*[##???????????????? | | ??????????????## #??# #????????????????? | | ???????????????###???# ##???????????????? | | ????????????????????## #????????######?? | | ????????????????????# #####?????$$$"##? | | ????????????????????# ####??#""""## | | ????????????????????## # ####### # | | ?????????????????????## "" # | | ??????????????????????# ## "# | | ?????????????????????## # " # | | ????????????????????## ### #### # | +----------------------------------------------------+ Best States ------------- Heat Dissipation 25 Energy Generation 15 Energy Capacity 250 Matter Stores 300 Matter Capacity 300 Sight Range 16 Terrain Scan Density 10 Armor Coverage 150 Power Shielding 33 Weapon Shielding 33 Evasion (%) 55 Targeting Accuracy 6 Recoil Reduction 2 Item Schematics ----------------- None Robot Schematics ------------------ None Fabricated ------------ Nothing Alien Tech Used ----------------- None Achievements -------------- None Challenges ------------ None Game ------ Seed MiniElectronRifle Manual? 0 Play Time 00:22:04 Cumulative 99.4 hours Start 2023.12.30 @ 23:51:25 End 2023.12.31 @ 00:14:49 Sessions 1 Manual Loads 0 Difficulty Rogue Special Mode None Game No. 46 Rogue 44 Adventurer 0 Explorer 2 Win Type - Total 7 Types 7/0/0/0/0/0/0/0/0 Lore% 49 Gallery% 65 Achievement% 55 Wizard Run 0 Options --------- ASCII 0 Keyboard 1 Movement Numpad Keybinds 0 Fullscreen 1 Font 24/Smallcaps Map View 76x50 Zoom Use 0% Tactical HUD 1 Map Filters NONE Filters NONE Steam 1 RUN: 641e35ed-3f7c-4f2a-adba-3bcbe947bb82